bitfinex/quotes_ETHUSD_20220218
["timestamp","ask_amount","ask_price","bid_price","bid_amount"]
[1645148529425,0.00336598,2918.7,2918.6,0.1713]
[1645148529724,0.06394401,2919.2,2918.6,0.1713]
[1645148529934,0.06394401,2919.2,2918.8,0.85649]
[1645148530129,0.06394401,2919.2,2918.8,1.02759]
[1645148530328,0.00448204,2919.6,2918.8,2.18404]
[1645148530529,0.00448204,2919.8,2919.0,0.85652]
[1645148530728,0.00448204,2919.8,2919.0,1.15652]
[1645148531175,0.00448204,2919.8,2919.3,1.00049188]
[1645148531376,0.00448204,2919.8,2919.3,0.85661]
[1645148531676,0.96459474,2920.0,2919.3,1.71313]
[1645148532076,0.96459474,2920.0,2919.3,2.01313]
[1645148532482,0.96459474,2920.0,2919.9,1.09653815]
[1645148532877,0.96459474,2920.0,2919.2,3.42604]
[1645148533079,0.96459474,2920.0,2919.2,1.84204828]
[1645148533282,0.96459474,2920.0,2918.2,0.1711]
[1645148533283,1.26459474,2920.0,2918.2,0.1711]
[1645148533479,1.26459474,2920.0,2917.9,3.1491]
[1645148533480,3.912,2919.9,2917.9,3.3202]
[1645148533686,3.912,2919.9,2918.0,1.858]
[1645148533687,25.3242,2919.9,2918.0,1.858]
[1645148533880,0.85699,2919.2,2918.0,1.858]
[1645148534080,0.85699,2919.2,2917.3,1.1625]
[1645148534081,3.912,2919.1,2917.4,2.0595]
[1645148534279,3.912,2919.1,2917.2,0.1713]
[1645148534280,5.0,2918.8,2917.2,0.1713]
[1645148534478,5.0,2918.8,2916.8,3.5579295]
[1645148534479,0.412,2918.7,2917.4,0.00336765]
[1645148534723,1.6263,2918.7,2917.4,0.00336765]
[1645148535030,1.6263,2918.7,2917.1,1.88556]
[1645148535031,1.01483879,2918.8,2918.0,1.17554908]
[1645148535227,6.08226106,2919.8,2918.1,0.1713]
[1645148535228,0.5,2919.0,2918.1,0.1713]
[1645148535526,1.2143,2919.7,2918.2,0.85674]
[1645148536126,2.34160433,2919.7,2918.9,0.91643423]
[1645148536327,2.34160433,2919.7,2918.3,0.3]
[1645148536328,0.85684,2919.6,2918.3,3.8]
[1645148536529,0.85684,2919.6,2918.5,0.3]
[1645148536728,0.85684,2919.6,2918.3,1.15689]
[1645148537029,4.0333418,2919.9,2918.4,3.5]
[1645148537232,5.1900818,2919.9,2918.4,4.35685]
[1645148537429,4.3333418,2919.9,2918.4,4.35685]
[1645148537645,4.3333418,2919.9,2918.4,0.85685]
[1645148537829,1.03689086,2919.4,2918.6,0.90764822]
[1645148538028,0.00138378,2919.3,2918.6,0.90764822]
[1645148538228,0.00138378,2919.3,2918.7,0.3]
[1645148538470,4.31101346,2919.9,2918.1,3.83104]
[1645148538674,0.412,2919.8,2918.1,7.15994]
[1645148538873,0.412,2919.8,2918.2,0.3]
[1645148539071,0.412,2919.8,2918.3,0.85689]
[1645148539273,0.412,2919.8,2918.4,0.3]
[1645148539471,0.90511076,2919.2,2918.4,0.3]
[1645148539673,0.90511076,2919.2,2918.0,0.1711]
[1645148539674,0.85696,2919.1,2917.9,0.1711]
[1645148539873,0.85696,2919.1,2917.6,3.5]
[1645148540073,0.412,2919.0,2917.4,3.5]
[1645148540279,0.3,2918.9,2917.4,3.5]
[1645148540476,0.3,2918.9,2917.3,2.80609]
[1645148540678,0.93528031,2917.9,2917.3,1.9489]
[1645148540879,0.93528031,2917.9,2917.0,4.45602]
[1645148541078,0.93528031,2917.9,2917.0,1.02854]
[1645148541279,0.93528031,2917.9,2916.8,3.8016295]
[1645148541479,0.88528031,2917.9,2916.8,1.1589595]
[1645148541680,0.88528031,2917.9,2916.9,0.85732]
[1645148542078,0.88528031,2917.9,2917.2,1.0266101]
[1645148542325,1.2179,2918.5,2917.2,2.7408801]
[1645148542521,1.2179,2918.5,2917.3,0.85714]
[1645148542726,1.2179,2918.5,2917.4,3.50336607]
[1645148543124,1.2179,2918.5,2917.4,0.00336607]
[1645148543323,1.2179,2918.5,2917.5,1.71408]
[1645148543324,1.10120186,2918.3,2917.5,1.71408]
[1645148543727,1.2179,2918.5,2917.7,1.01504318]
[1645148543926,2.7186,2918.7,2917.8,0.00336583]
[1645148544530,1.5061,2919.0,2917.9,1.71401]
[1645148544730,1.5061,2919.0,2918.0,1.15701]
[1645148544731,1.17327565,2918.8,2918.0,1.15701]
[1645148544929,1.17327565,2918.8,2918.1,0.85691]
[1645148545131,1.17327565,2918.8,2918.0,0.3]
[1645148545331,1.17327565,2918.8,2917.7,1.87211318]
[1645148545332,1.17327565,2918.8,2918.3,0.00336545]
[1645148545536,1.47327565,2918.8,2918.3,0.00336545]
[1645148546186,1.47327565,2918.8,2917.6,0.85711]
[1645148546381,1.47327565,2918.8,2918.4,0.00336539]
[1645148546780,1.17327565,2918.8,2918.4,0.00336539]
[1645148546979,0.00445963,2918.7,2918.4,0.00336539]
[1645148547381,0.00445963,2918.7,2918.3,3.4]
[1645148547579,0.00445963,2918.7,2918.5,0.00313927]
[1645148547778,1.17773528,2918.8,2918.5,0.00313927]
[1645148548380,1.47773528,2918.8,2918.5,0.00313927]
[1645148548579,2.33483528,2918.8,2918.3,3.4]
[1645148548783,1.47773528,2918.8,2918.5,0.00313924]
[1645148549581,1.17773528,2918.8,2918.5,0.00313924]
[1645148549823,1.17773528,2918.8,2918.3,3.4]
[1645148550030,0.412,2918.7,2918.5,0.00313924]
[1645148550224,5.412,2918.7,2918.5,0.00313924]
[1645148550427,20.692,2918.7,2918.5,0.00313924]
[1645148550934,20.692,2918.7,2918.3,3.4]
[1645148550935,0.85725,2918.6,2918.3,3.4]
[1645148551131,0.86170963,2918.6,2918.5,0.00315843]
[1645148551330,0.85725,2918.6,2918.5,0.00315843]
[1645148551531,1.26925,2918.6,2916.9,3.6713]
[1645148551731,0.00445963,2918.5,2917.0,1.76106395]
[1645148551935,0.412,2918.4,2917.0,0.3]
[1645148552131,0.412,2918.4,2917.1,0.1713]
[1645148552132,0.86172963,2918.3,2917.1,0.1713]
[1645148552334,1.18134818,2917.5,2916.9,0.1713]
[1645148552536,1.18134818,2917.5,2917.0,1.46107028]
[1645148552735,1.18134818,2917.5,2916.8,0.1303295]
[1645148552736,1.18134818,2917.5,2917.1,0.1713]
[1645148552935,1.18134818,2917.5,2916.9,0.1713]
[1645148553335,1.18134818,2917.5,2917.0,1.46105778]
[1645148553881,1.18134818,2917.5,2917.0,1.76105778]
[1645148554080,0.00445963,2918.1,2917.5,1.55842681]
[1645148554481,0.00445963,2918.3,2917.5,1.55842681]
[1645148554681,20.28,2918.5,2917.5,1.55842681]
[1645148554881,0.00445963,2918.4,2917.7,0.00336687]
[1645148555084,5.00445963,2918.7,2917.7,0.00336687]
[1645148555281,0.98242717,2918.6,2917.7,0.00336687]
[1645148555481,0.95839684,2917.8,2917.7,0.00336687]
[1645148555681,0.95839684,2917.8,2917.5,1.55842681]
[1645148556482,0.95839684,2917.8,2917.5,4.95842681]
[1645148557087,0.95839684,2917.8,2917.5,4.96179379]
[1645148558126,0.95839684,2917.8,2917.5,4.95842681]
[1645148558328,0.95839684,2917.8,2917.5,4.96179379]
[1645148559130,0.00445963,2918.4,2917.5,4.96179379]
[1645148559326,0.00445963,2918.4,2917.5,4.95842681]
[1645148559527,0.00445963,2918.4,2917.5,4.96179379]
[1645148559728,21.14168963,2918.4,2917.5,4.96179379]
[1645148559929,21.55368963,2918.4,2917.5,4.96179379]
[1645148560227,21.32432474,2918.3,2917.5,4.96179379]
[1645148560429,1.12088583,2917.6,2917.5,4.95842681]
[1645148563477,0.00445963,2918.3,2917.5,4.95842681]
[1645148563677,0.41645963,2918.3,2917.5,4.95842681]
[1645148564478,0.41645963,2918.3,2917.8,0.0033668]
[1645148564723,1.17371963,2918.3,2917.8,0.0033668]
[1645148565123,21.75371963,2918.3,2917.8,0.0033668]
[1645148565323,1.47371963,2918.3,2917.5,4.95842681]
[1645148565529,1.47371963,2918.3,2917.9,0.0033667]
[1645148565530,0.88841832,2918.2,2917.9,0.0033667]
[1645148565722,0.85734,2918.0,2917.9,0.0033667]
[1645148566126,1.15734,2918.0,2917.9,0.0033667]
[1645148566326,0.85734,2918.0,2917.9,0.0033667]
[1645148566530,0.85734,2918.0,2917.5,4.95842681]
[1645148566727,1.15734,2918.0,2917.8,0.00336677]
[1645148567226,0.85734,2918.0,2917.8,0.00336677]
[1645148567427,0.752471,2918.0,2917.8,0.00336677]
[1645148567831,0.752471,2918.0,2917.5,4.95842681]
[1645148567832,0.08176106,2919.0,2917.5,4.95842681]
[1645148568029,0.412,2919.0,2917.8,0.0033668]
[1645148568475,1.26913,2919.0,2917.8,0.0033668]
[1645148568678,1.11742357,2918.2,2917.8,0.0033668]
[1645148568877,1.11742357,2918.2,2917.6,0.88785456]
[1645148569085,1.11742357,2918.2,2917.5,4.95842681]
[1645148569280,1.11742357,2918.2,2918.0,0.00336663]
[1645148570079,1.41742357,2918.2,2917.5,4.95842681]
[1645148570280,1.19407175,2917.7,2917.5,4.95842681]
[1645148571486,2.22723568,2918.5,2917.5,4.96179382]
[1645148572428,2.22723568,2918.5,2917.5,4.95842681]
[1645148572626,1.1897809,2917.8,2917.5,4.95842681]
[1645148574026,1.1897809,2917.8,2917.5,4.96179379]
[1645148574730,1.4897809,2917.8,2917.5,4.96179379]
[1645148574929,1.4897809,2917.8,2917.5,4.95842681]
[1645148575328,1.1897809,2917.8,2917.5,4.96179379]
[1645148575528,1.4897809,2917.8,2917.5,4.96179379]
[1645148576176,0.92477568,2918.5,2917.5,4.95842681]
[1645148576377,0.92477568,2918.5,2917.5,4.96179379]
[1645148576378,0.51277568,2918.5,2917.5,4.96179379]
[1645148576677,0.51277568,2918.5,2917.6,0.85714]
[1645148577079,1.36992568,2918.5,2917.6,0.85714]
[1645148577279,1.07795072,2918.2,2917.7,0.85714]
[1645148577677,1.07795072,2918.2,2917.9,0.0033667]
[1645148578077,2.23515072,2918.2,2917.9,0.0033667]
[1645148578578,2.23515072,2918.2,2917.5,5.81561681]
[1645148578776,2.23515072,2918.2,2917.9,0.0033667]
[1645148578976,1.37795072,2918.2,2917.9,0.0033667]
[1645148579177,0.85725,2918.1,2917.9,0.0033667]
[1645148579827,0.85725,2918.1,2917.5,4.95842681]
[1645148580027,0.85725,2918.1,2917.9,0.00336674]
[1645148580829,0.85725,2918.1,2917.5,4.95842681]
[1645148581235,0.85725,2918.1,2917.9,0.00336674]
[1645148582039,0.85725,2918.1,2917.5,4.95842681]
[1645148582237,20.28,2918.0,2917.5,4.95842681]
[1645148582436,21.99474,2918.0,2917.9,0.00336674]
[1645148582636,22.29474,2918.0,2917.9,0.00336674]
[1645148582936,2.01474,2918.0,2917.9,0.00336674]
[1645148583335,2.01474,2918.0,2917.5,4.95842681]
[1645148583575,0.90683725,2917.7,2917.5,4.95842681]
[1645148583774,1.20683725,2917.7,2917.5,4.95842681]
[1645148584776,1.20683725,2917.7,2917.5,4.96179382]
[1645148584975,2.06415725,2917.7,2917.5,4.96179382]
[1645148585775,1.76415725,2917.7,2917.5,4.95842681]
[1645148585977,0.90683725,2917.7,2917.5,4.96179382]
[1645148586182,1.71457,2918.1,2917.5,4.96179382]
[1645148586380,0.412,2918.3,2917.5,4.96179382]
[1645148586780,0.412,2918.3,2917.6,1.46096475]
[1645148586781,0.712,2918.3,2917.6,1.46096475]
[1645148586981,0.85721,2918.1,2917.6,1.46096475]
[1645148587230,0.51277568,2918.5,2917.8,1.1380587]
[1645148587428,0.51277568,2918.5,2917.9,1.46096475]
[1645148587925,1.36994568,2918.5,2917.9,1.46096475]
[1645148588126,1.36994568,2918.5,2917.5,5.12972681]
[1645148588127,0.8572,2918.4,2917.5,5.12972681]
[1645148588329,0.8572,2918.4,2917.6,1.63223731]
[1645148588525,0.8572,2918.4,2918.1,0.0033666]
[1645148588726,1.1572,2918.4,2918.1,0.0033666]
[1645148588925,2.01443,2918.4,2918.1,0.0033666]
[1645148589125,1.71454,2918.3,2918.1,0.0033666]
[1645148589325,1.71454,2918.3,2917.5,4.95842681]
[1645148589525,1.07955369,2917.7,2917.5,4.95842681]
[1645148589929,1.07955369,2917.7,2917.6,1.46100737]
[1645148590125,1.07955369,2917.7,2917.6,1.46013302]
[1645148590325,1.07955369,2917.7,2917.5,4.95842681]
[1645148590732,0.3,2918.4,2917.5,4.96179379]
[1645148590976,0.85733,2917.7,2917.5,4.96179379]
[1645148591182,1.22477568,2918.5,2917.5,4.96179379]
[1645148591386,26.1118,2919.2,2917.6,3.6713]
[1645148591684,7.82627972,2919.4,2917.9,1.7139]
[1645148591685,0.00443733,2919.1,2917.9,1.7139]
[1645148591884,1.10601638,2919.1,2918.0,4.0833]
[1645148592084,1.10601638,2919.1,2918.4,0.85661]
[1645148592283,0.00443733,2919.0,2918.5,0.1713]
[1645148592488,0.00443733,2919.0,2918.5,1.1387]
[1645148592683,0.00443733,2919.0,2918.6,0.85662]
[1645148593482,0.00443733,2919.0,2918.6,1.71336]
[1645148593685,0.00443733,2919.0,2918.6,0.85674]
[1645148593886,0.00443733,2919.0,2918.8,1.71345]
[1645148594185,0.00443733,2919.8,2918.8,3.42668]
[1645148594385,0.00136755,2919.5,2918.8,3.42668]
[1645148595031,0.00136755,2919.5,2919.0,0.85664]
[1645148595231,0.00136755,2919.5,2919.1,5.21278]
[1645148595429,0.00443733,2919.8,2919.1,5.21278]
[1645148595632,0.00336781,2919.5,2919.2,0.85647]
[1645148596434,0.00336781,2919.5,2919.4,1.71296]
[1645148596635,0.01790723,2919.8,2919.5,0.85663]
[1645148596636,0.00443733,2919.8,2919.5,0.85663]
[1645148596834,0.00443733,2919.8,2919.1,1.71277]
[1645148596835,0.00336785,2919.5,2919.1,1.71277]
[1645148597340,0.92298279,2919.5,2919.1,1.71277]
[1645148597545,0.00443733,2919.4,2918.7,1.8896]
[1645148597741,0.00443733,2919.4,2918.3,5.155182]
[1645148597936,0.00443733,2919.4,2918.6,0.85685]
[1645148598335,0.00443733,2919.4,2918.6,1.93087085]
[1645148598576,0.00443733,2919.4,2918.6,1.07402085]
[1645148599176,0.00443733,2919.4,2918.5,1.71364]
[1645148599377,0.00443733,2919.4,2918.4,0.86005121]
[1645148599378,0.85697,2919.3,2918.4,0.00316121]
[1645148599577,0.00443733,2919.2,2918.4,0.00316121]
[1645148600181,0.00443733,2919.2,2918.3,0.136982]
[1645148600182,0.494,2919.1,2918.3,0.136982]
[1645148600579,0.794,2919.1,2918.4,0.00316113]
[1645148601182,1.119871,2918.7,2918.4,0.00316113]
[1645148601384,1.119871,2918.7,2918.3,0.136982]
[1645148601782,1.119871,2918.7,2918.4,0.00316111]
[1645148602632,1.119871,2918.7,2918.3,0.136982]
[1645148602835,0.794,2919.1,2918.4,0.00316103]
[1645148603434,0.85706,2919.0,2918.4,0.00316103]
[1645148603638,0.494,2918.9,2918.4,0.00316103]
[1645148603832,0.3,2919.1,2918.3,3.4]
[1645148603833,0.794,2919.1,2918.3,3.4]
[1645148604032,0.3,2918.9,2918.3,3.4]
[1645148604233,0.794,2919.1,2918.4,0.00317507]
[1645148604434,0.494,2919.1,2918.4,0.00317507]
[1645148604635,0.00317377,2919.5,2918.4,0.00317507]
[1645148604636,0.49717377,2919.5,2918.5,0.85687]
[1645148604934,0.00443733,2919.4,2918.5,0.85687]
[1645148605132,1.00939847,2918.9,2918.5,0.85687]
[1645148605332,0.00443733,2919.4,2918.5,2.57037]
[1645148605535,0.00443733,2919.4,2918.5,1.7135]
[1645148605732,0.00443733,2919.4,2918.4,0.00317519]
[1645148605984,0.00443733,2919.4,2918.4,0.17427519]
[1645148606183,0.00443733,2919.4,2918.4,0.1711]
[1645148606395,0.91730606,2918.9,2918.4,0.1711]
[1645148606584,0.91730606,2918.9,2918.4,0.17427515]
[1645148606786,0.85687,2918.9,2918.4,0.17427515]
[1645148606988,0.85687,2918.9,2918.4,0.00317515]
[1645148607487,0.85687,2918.9,2918.3,3.4]
[1645148607688,0.85687,2918.9,2918.4,0.00317607]
[1645148608487,1.03389199,2918.6,2918.4,0.00317607]
[1645148608689,1.03389199,2918.6,2918.3,3.4]
[1645148608890,1.03389199,2918.6,2918.4,0.00317607]
[1645148609724,1.03389199,2918.6,2918.3,3.4]
[1645148609925,0.85682,2919.1,2918.3,3.4]
[1645148610128,0.85682,2919.1,2918.4,0.00317601]
[1645148610526,0.3,2919.1,2918.4,0.00317601]
[1645148610735,1.71391,2919.1,2918.4,0.00317601]
[1645148610928,0.8569,2919.0,2918.4,0.00317601]
[1645148611132,0.8569,2919.0,2918.3,3.4]
[1645148611433,0.8569,2919.0,2918.4,0.00317408]
[1645148611630,1.178563,2918.5,2918.4,0.00317408]
[1645148612031,2.035633,2918.5,2918.4,0.00317408]
[1645148612232,2.035633,2918.5,2918.3,3.4]
[1645148612432,2.035633,2918.5,2918.3,3.40317401]
[1645148613473,2.035633,2918.5,2918.3,3.4]
[1645148613674,2.035633,2918.5,2918.3,3.40317405]
[1645148613980,2.91241846,2919.5,2918.3,3.40317405]
[1645148613981,0.85697,2918.8,2918.3,3.40317405]
[1645148614177,0.494,2919.2,2918.3,3.40162545]
[1645148614575,0.494,2919.2,2918.4,0.85686]
[1645148614778,0.49843733,2919.6,2918.4,0.85686]
[1645148614979,0.00317292,2919.5,2918.4,0.86003422]
[1645148615280,0.96536856,2919.1,2918.4,1.77146644]
[1645148615679,0.96536856,2919.1,2918.4,0.86003422]
[1645148615982,0.96536856,2919.1,2918.4,1.71368]
[1645148616181,0.96536856,2919.1,2918.5,0.85684]
[1645148616481,0.00317292,2919.5,2918.5,0.80684]
[1645148616686,0.85678,2919.4,2918.5,0.80684]
[1645148616883,0.00317292,2919.5,2918.5,1.66366]
[1645148617228,0.003173,2919.5,2918.6,0.85683]
[1645148617427,0.003173,2919.5,2918.7,1.71345]
[1645148617831,0.859943,2919.5,2918.8,1.06344951]
[1645148618233,0.85677,2919.5,2918.5,1.7135]
[1645148618426,0.85677,2919.5,2918.6,0.85684]
[1645148618636,0.85994308,2919.5,2918.6,0.85684]
[1645148619030,0.85994308,2919.5,2918.5,1.71358]
[1645148619431,0.85677,2919.5,2918.5,2.57043]
[1645148619831,0.85677,2919.5,2918.8,1.07385015]
[1645148620632,0.85677,2919.5,2918.8,1.93064015]
[1645148620832,0.85677,2919.5,2918.8,1.07385015]
[1645148622180,1.77052905,2919.5,2918.8,1.07385015]
[1645148622679,1.77052905,2919.5,2918.5,1.71358]
[1645148623080,1.77052905,2919.5,2918.4,1.8175]
[1645148623382,1.77052905,2919.5,2918.4,2.67772203]
[1645148623785,1.77052905,2919.5,2918.5,0.9536658]
[1645148624382,1.77052905,2919.5,2918.5,1.8105258]
[1645148624582,1.77052905,2919.5,2918.6,0.85686]
[1645148624824,1.77052905,2919.5,2918.5,1.8105258]
[1645148625028,1.77052905,2919.5,2918.5,0.9536658]
[1645148625625,1.77052905,2919.5,2918.5,1.8105558]
[1645148627030,1.77052905,2919.5,2918.5,0.9536658]
[1645148627229,1.77052905,2919.5,2918.4,1.82071828]
[1645148627830,1.77052905,2919.5,2918.4,1.8175]
[1645148627831,1.71391,2919.4,2918.4,1.8175]
[1645148628031,1.71391,2919.4,2918.4,1.82071826]
[1645148628032,0.85696,2919.1,2918.4,1.82071826]
[1645148628330,0.85696,2919.1,2918.4,0.86015826]
[1645148628983,0.85696,2919.1,2918.4,1.71384]
[1645148629181,0.85683,2919.3,2918.5,0.85688]
[1645148630184,0.85683,2919.3,2918.5,1.71375]
[1645148630381,0.85683,2919.3,2918.8,0.94193864]
[1645148630585,1.79895572,2919.7,2918.8,0.94193864]
[1645148630586,0.00322524,2919.6,2918.8,0.94193864]
[1645148630784,0.00322524,2919.6,2918.8,1.24193864]
[1645148630985,0.00322524,2919.6,2918.9,0.1711]
[1645148631188,0.00322524,2919.6,2919.0,1.46017548]
[1645148631490,0.00443733,2919.8,2919.1,1.02747]
[1645148631686,0.00443733,2919.8,2919.2,1.46017548]
[1645148631687,0.00322538,2919.6,2919.2,1.46017548]
[1645148631885,0.00322538,2919.6,2919.3,1.01807081]
[1645148632330,0.00322538,2919.6,2919.3,2.17453081]
[1645148632529,0.00322538,2919.6,2919.4,0.85648]
[1645148632738,0.00443733,2919.8,2919.5,0.1711]
[1645148632935,0.00322485,2919.6,2919.3,2.85989081]
[1645148633134,0.00322485,2919.6,2919.3,2.55989081]
[1645148633334,0.00322485,2919.6,2919.5,0.85652]
[1645148633534,0.00322485,2919.6,2919.5,0.85651]
[1645148633936,0.00443733,2919.8,2919.5,0.85651]
[1645148634141,0.00322478,2919.7,2919.5,0.85651]
[1645148634536,0.00322478,2919.7,2919.5,1.71315]
[1645148635139,0.00443733,2919.8,2919.6,0.3]
[1645148635439,0.00322475,2919.7,2919.6,2.86948]
[1645148635837,0.00322475,2919.7,2919.6,1.71298]
[1645148636077,0.00322475,2919.7,2919.6,2.56946]
[1645148636281,0.00443733,2919.8,2919.6,1.71298]
[1645148636692,0.00766207,2919.8,2919.6,2.56952]
[1645148636985,0.00766207,2919.8,2919.6,3.426]
[1645148637182,0.00766207,2919.8,2919.7,0.3]
[1645148637583,0.00443733,2919.8,2919.7,0.29884461]
[1645148637782,0.00760157,2919.8,2919.7,0.29884461]
[1645148638783,0.00443733,2919.8,2919.7,3.79884461]
[1645148639187,0.00443733,2919.8,2919.7,0.29884461]
[1645148639383,0.0134836,2920.0,2919.8,1.71271]
[1645148639584,0.0134836,2920.0,2919.9,0.85636]
[1645148640024,0.0134836,2920.0,2919.9,1.85829951]
[1645148641837,0.0134836,2920.0,2919.9,1.00193951]
[1645148643238,0.0134836,2920.0,2919.6,3.4]
[1645148643483,0.64429551,2920.0,2919.6,3.4]
[1645148643678,1.99494551,2920.0,2919.6,3.4]
[1645148644879,1.99836473,2920.0,2919.6,3.4]
[1645148645082,1.14171473,2920.0,2919.6,3.4]
[1645148645684,1.14171473,2920.0,2919.8,0.87808268]
[1645148645885,1.13829551,2920.0,2919.8,0.87808268]
[1645148646091,0.01690282,2920.0,2919.8,2.03458268]
[1645148646790,0.01690282,2920.0,2919.8,1.73458268]
[1645148646994,0.0134836,2920.0,2919.8,1.73458268]
[1645148647226,0.0134836,2920.0,2919.8,0.87808268]
[1645148647427,0.01690287,2920.0,2919.7,0.85655]
[1645148647630,0.01690287,2920.0,2919.6,3.4]
[1645148648030,0.87353287,2920.0,2919.6,3.4]
[1645148648230,0.8701136,2920.0,2919.6,3.4]
[1645148648629,0.87353282,2920.0,2919.6,3.4]
[1645148649431,0.8701136,2920.0,2919.6,3.4]
[1645148649634,0.0134836,2920.0,2919.6,3.4]
[1645148649831,0.01690282,2920.0,2919.6,4.25656]
[1645148650232,0.01690282,2920.0,2919.6,5.11315]
[1645148650431,0.01690282,2920.0,2919.6,4.25659]
[1645148650731,0.0134836,2920.0,2919.9,1.11199501]
[1645148650976,0.01690282,2920.0,2919.9,1.11199501]
[1645148651782,0.15768283,2920.4,2920.0,0.85636]
[1645148651981,0.10640088,2920.4,2920.0,0.85639]
[1645148652381,0.00341924,2920.1,2920.0,0.85645]
[1645148652581,0.00341924,2920.1,2919.9,1.11199501]
[1645148653182,0.20613581,2920.4,2919.6,3.4]
[1645148653382,0.85657,2920.1,2919.6,3.7]
[1645148653784,0.20613581,2920.4,2919.6,3.7]
[1645148654083,0.20613581,2920.4,2919.6,3.4]
[1645148654286,0.20613581,2920.4,2919.8,0.92006579]
[1645148654484,0.20613581,2920.4,2919.9,0.85651]
[1645148654734,0.20613581,2920.4,2919.9,0.85571]
[1645148654931,0.00441514,2920.3,2919.8,0.92006579]
[1645148655134,0.00441514,2920.3,2919.8,1.77656579]
[1645148655631,0.86092514,2920.3,2919.8,0.92006579]
[1645148655832,0.00341917,2920.2,2919.8,0.92006579]
[1645148656634,0.00441514,2920.3,2919.8,0.92006579]
[1645148656835,0.85655,2920.2,2919.8,0.92006579]
[1645148657034,0.00783434,2920.1,2919.8,0.92006579]
[1645148657436,0.0034192,2920.1,2919.8,0.92006579]
[1645148657837,0.00441514,2920.3,2919.8,0.92006579]
[1645148658136,0.00441514,2920.3,2919.6,3.4]
[1645148658137,0.85661,2920.0,2919.6,3.4]
[1645148658336,0.86102514,2920.0,2919.6,3.4]
[1645148660378,2.0382615,2920.0,2919.6,3.4]
[1645148661183,0.8567,2919.9,2919.6,3.4]
[1645148661590,1.3507,2919.9,2919.6,3.4]
[1645148661783,0.08176106,2919.8,2919.6,3.09454989]
[1645148661983,0.494,2919.7,2919.6,3.09454989]
[1645148662234,0.00441514,2920.0,2919.6,3.09454989]
[1645148662438,0.00341908,2920.1,2919.6,3.09454989]
[1645148662832,0.00441514,2920.3,2919.6,3.09454989]
[1645148663233,1.75713129,2920.2,2919.6,3.95110989]
[1645148663434,0.00441514,2920.1,2919.6,3.95110989]
[1645148663932,0.00441514,2920.3,2919.6,3.95110989]
[1645148664131,0.00330167,2920.1,2919.6,4.80762989]
[1645148664535,0.00330167,2920.1,2919.7,0.8565]
[1645148664936,1.0037713,2920.1,2919.7,0.8565]
[1645148665132,0.00441514,2920.0,2919.6,3.95106989]
[1645148665534,0.00441514,2920.0,2919.6,3.95109989]
[1645148665834,0.00441514,2920.0,2919.6,3.09454989]
[1645148666487,0.8566,2919.9,2919.6,3.09454989]
[1645148667281,0.00441514,2920.0,2919.6,3.09454989]
[1645148667486,0.86098514,2920.0,2919.6,3.09454989]
[1645148667882,0.00441514,2920.0,2919.6,3.95106989]
[1645148669286,3.50441514,2920.0,2919.6,3.09454989]
[1645148669490,0.494,2919.9,2919.6,3.09454989]
[1645148669733,1.73259106,2919.9,2919.6,3.09454989]
[1645148670139,1.65083,2919.9,2919.6,3.09454989]
[1645148671139,0.794,2919.9,2919.8,2.0]
[1645148671340,0.794,2919.9,2918.8,0.136956]
[1645148671341,6.0,2919.8,2919.4,0.00320016]
[1645148671640,6.494,2919.8,2919.4,0.00320016]
[1645148671837,7.35091,2919.8,2919.4,0.00320016]
[1645148672241,0.3,2919.7,2919.4,0.00320016]
[1645148672438,0.494,2919.6,2918.8,0.993836]
[1645148672643,1.35091,2919.6,2918.8,0.136956]
[1645148672837,1.65091,2919.6,2918.8,0.136956]
[1645148673038,4.51844321,2919.5,2918.8,0.136956]
[1645148673340,0.494,2919.4,2918.8,0.136956]
[1645148673583,1.65092,2919.4,2918.8,0.136956]
[1645148673782,0.794,2919.4,2918.8,0.136956]
[1645148674188,21.13707,2919.3,2918.8,0.136956]
[1645148674387,1.65104,2919.2,2918.8,0.136956]
[1645148674587,0.494,2919.1,2918.8,0.136956]
[1645148674786,1.35105,2919.1,2918.8,0.136956]
[1645148674986,1.35105,2919.1,2918.9,0.00341575]
[1645148675789,1.35105,2919.1,2917.8,5.38515]
[1645148675790,0.8571,2918.7,2917.8,0.82437764]
[1645148675992,0.8571,2918.7,2917.9,1.46057602]
[1645148676195,0.3,2918.7,2918.0,1.46057602]
[1645148676393,0.92299369,2918.0,2917.7,0.1713]
[1645148676593,0.494,2918.9,2918.2,0.6350154]
[1645148676594,1.08957443,2918.8,2918.2,0.6350154]
[1645148676794,0.494,2918.7,2918.2,0.6350154]
[1645148676995,0.85715,2918.4,2918.2,0.6350154]
[1645148677236,1.15715,2918.4,2918.2,0.6350154]
[1645148677438,0.494,2918.3,2918.2,0.6350154]
[1645148677840,0.794,2918.3,2918.2,0.6350154]
[1645148678037,2.50866,2918.3,2918.2,0.6350154]
[1645148678235,2.50866,2918.3,2917.1,4.32457764]
[1645148678236,0.869631,2917.3,2917.1,0.65773234]
[1645148678436,0.85727,2918.0,2917.2,1.46535063]
[1645148678741,0.85727,2918.0,2917.3,1.46535063]
[1645148678937,1.1512,2918.2,2917.4,1.46089593]
[1645148679138,0.494,2918.2,2917.4,1.46089593]
[1645148679538,0.92743735,2918.1,2917.4,2.82067073]
[1645148679740,1.78467735,2918.1,2917.5,1.46089593]
[1645148679940,1.78467735,2918.1,2917.7,0.0034166]
[1645148680739,1.78467735,2918.1,2917.3,1.46089593]
[1645148680978,1.78467735,2918.1,2917.4,0.0044547]
[1645148680979,2.08467735,2918.1,2917.4,0.0044547]
[1645148681180,0.85727,2917.9,2917.8,0.00341653]
[1645148681380,1.22743735,2918.1,2917.8,0.00341653]
[1645148681381,0.92743735,2918.1,2917.8,0.00341653]
[1645148681980,0.92743735,2918.1,2917.2,0.85722]
[1645148682279,0.494,2918.2,2917.3,1.46081557]
[1645148682280,0.97262495,2917.6,2917.3,1.46081557]
[1645148682479,0.97262495,2917.6,2917.3,1.46527027]
[1645148682678,0.97262495,2917.6,2917.4,1.46081557]
[1645148683079,1.7388,2918.2,2917.4,1.46081557]
[1645148683279,0.85723,2918.1,2917.5,0.0044547]
[1645148683481,0.494,2918.1,2917.5,0.0044547]
[1645148683680,0.494,2918.1,2917.6,1.46081557]
[1645148684178,1.03808635,2917.8,2917.4,0.00341681]